bitfinex-derivatives/quotes_BTCF0:USTF0_20250830
["timestamp","ask_amount","ask_price","bid_price","bid_amount"]
[1756583441520,1.17603969,108880.0,108870.0,1.1417781]
[1756583441709,1.24213789,108880.0,108870.0,1.1417781]
[1756583441905,1.24213789,108880.0,108870.0,0.83152]
[1756583442512,1.24413789,108880.0,108870.0,0.83152]
[1756583443118,1.24413789,108880.0,108870.0,1.1417781]
[1756583444321,0.88333789,108880.0,108870.0,1.1417781]
[1756583445117,0.81723969,108880.0,108870.0,1.1417781]
[1756583445319,0.50698159,108880.0,108870.0,1.1417781]
[1756583445622,0.57307979,108880.0,108870.0,1.1417781]
[1756583446322,0.50698159,108880.0,108870.0,1.1417781]
[1756583447723,0.57307979,108880.0,108870.0,1.1417781]
[1756583449524,0.26282169,108880.0,108870.0,1.1417781]
[1756583449720,0.57307979,108880.0,108870.0,1.1417781]
[1756583450325,0.57307818,108880.0,108870.0,1.1417781]
[1756583457032,0.50697998,108880.0,108870.0,1.1417781]
[1756583458728,0.57307818,108880.0,108870.0,0.3102581]
[1756583458935,0.57307818,108880.0,108870.0,1.1417381]
[1756583459136,0.50697998,108880.0,108870.0,1.1417381]
[1756583459336,0.50697998,108880.0,108870.0,0.3102581]
[1756583459537,0.50697998,108880.0,108870.0,1.1417381]
[1756583459935,0.26282008,108880.0,108870.0,1.1417381]
[1756583460135,0.57307818,108880.0,108870.0,1.1417381]
[1756583460335,0.26282008,108880.0,108870.0,1.1417381]
[1756583460536,0.57307818,108880.0,108870.0,1.1417381]
[1756583460937,0.26282008,108880.0,108870.0,1.1417381]
[1756583461140,0.57307818,108880.0,108870.0,1.1417381]
[1756583462842,0.57307818,108880.0,108860.0,0.3608]
[1756583463037,0.0741993,108870.0,108860.0,0.9910581]
[1756583463339,0.20636118,108870.0,108860.0,2.1327962]
[1756583463540,0.24179118,108870.0,108860.0,2.1327962]
[1756583464246,0.24279118,108870.0,108860.0,2.1327962]
[1756583464849,0.20736118,108870.0,108860.0,2.1327962]
[1756583465147,0.20736118,108870.0,108860.0,1.51228]
[1756583465447,0.20736118,108870.0,108860.0,2.1327962]
[1756583465646,0.20836118,108870.0,108860.0,2.1327962]
[1756583466346,0.20836118,108870.0,108860.0,1.51228]
[1756583466547,0.20836118,108870.0,108860.0,2.1327962]
[1756583467850,0.15875188,108870.0,108860.0,2.1327962]
[1756583468944,0.15875188,108870.0,108860.0,0.6808]
[1756583469152,0.15875188,108870.0,108860.0,2.1327562]
[1756583469353,0.15875188,108870.0,108860.0,1.51224]
[1756583469546,0.15875188,108870.0,108860.0,2.1327562]
[1756583471750,0.15875188,108870.0,108860.0,1.51224]
[1756583471959,0.50443998,108870.0,108860.0,0.3608]
[1756583472149,0.50443998,108870.0,108860.0,0.83144]
[1756583472350,0.55404928,108870.0,108860.0,0.83196]
[1756583472955,0.24379118,108870.0,108860.0,0.83196]
[1756583473158,0.55404928,108870.0,108860.0,0.83196]
[1756583473952,0.55404928,108870.0,108850.0,0.62734]
[1756583474158,0.3702781,108860.0,108850.0,0.62734]
[1756583474353,0.39243998,108860.0,108850.0,1.7695581]
[1756583476757,0.39243998,108860.0,108850.0,1.4593]
[1756583476958,0.39243998,108860.0,108850.0,1.7695581]
[1756583477358,0.40172503,108860.0,108850.0,1.7695581]
[1756583479554,0.39243998,108860.0,108850.0,1.7695581]
[1756583482161,0.40142475,108860.0,108850.0,1.7695581]
[1756583483062,0.39243998,108860.0,108850.0,1.7695581]
[1756583483563,0.08218188,108860.0,108850.0,1.7692381]
[1756583483765,0.39243998,108860.0,108850.0,1.7692381]
[1756583484663,0.08218188,108860.0,108850.0,1.7692381]
[1756583484863,0.35700998,108860.0,108850.0,1.7692381]
[1756583486264,0.02216188,108860.0,108850.0,2.0892381]
[1756583486464,0.02216188,108860.0,108850.0,2.3994962]
[1756583489857,0.02216188,108860.0,108850.0,2.0794962]
[1756583490166,0.02216188,108860.0,108850.0,2.3994962]
[1756583496968,0.02216188,108860.0,108850.0,2.0994962]
[1756583497170,0.02216188,108860.0,108850.0,2.4194962]
[1756583501758,0.05785188,108860.0,108850.0,1.5878562]
[1756583501966,0.08190188,108860.0,108850.0,0.62734]
[1756583502165,0.39215998,108860.0,108850.0,1.45886]
[1756583502365,0.39215998,108860.0,108850.0,1.7691181]
[1756583502870,0.39215998,108860.0,108850.0,2.0991181]
[1756583508973,0.39215998,108860.0,108850.0,1.78886]
[1756583509179,0.39215998,108860.0,108850.0,1.7691181]
[1756583516686,0.44176928,108860.0,108850.0,1.7691181]
[1756583516882,0.13151118,108860.0,108850.0,1.7691181]
[1756583517081,0.04621188,108860.0,108850.0,2.0891181]
[1756583517285,0.02216188,108860.0,108850.0,2.0891181]
[1756583519688,0.02216188,108860.0,108850.0,1.2575981]
[1756583519891,0.02216188,108860.0,108850.0,2.0891181]
[1756583523889,0.02216188,108860.0,108850.0,1.7891181]
[1756583524090,0.02216188,108860.0,108850.0,2.1091181]
[1756583528595,0.02216188,108860.0,108850.0,1.7891181]
[1756583528787,0.02216188,108860.0,108850.0,2.1491181]
[1756583529797,0.02216188,108860.0,108850.0,2.4593762]
[1756583529998,0.07177118,108860.0,108850.0,2.1491181]
[1756583531200,0.07177118,108860.0,108850.0,2.4593762]
[1756583531399,0.07177118,108860.0,108850.0,2.0793762]
[1756583531601,0.07177118,108860.0,108850.0,2.4593762]
[1756583533796,0.07177118,108860.0,108850.0,1.6278562]
[1756583534102,0.07177118,108860.0,108850.0,2.1491181]
[1756583535299,0.0496093,108860.0,108850.0,2.1491181]
[1756583538109,0.0496093,108860.0,108850.0,1.7691181]
[1756583538310,0.0496093,108860.0,108850.0,2.1291181]
[1756583539700,0.0496093,108860.0,108850.0,0.9575981]
[1756583539906,0.0496093,108860.0,108850.0,1.45882]
[1756583539907,0.4215474,108860.0,108850.0,1.45882]
[1756583540109,0.44382322,108860.0,108850.0,1.7690781]
[1756583540606,0.44382322,108860.0,108850.0,0.9375981]
[1756583540809,0.44382322,108860.0,108850.0,1.7690781]
[1756583542210,0.44382322,108860.0,108850.0,1.45882]
[1756583542409,0.44382322,108860.0,108850.0,1.7690781]
[1756583543108,0.44382322,108860.0,108850.0,1.45882]
[1756583543310,0.44382322,108860.0,108850.0,1.7690781]
[1756583544514,0.39421392,108860.0,108850.0,1.7690781]
[1756583545311,0.39421392,108860.0,108850.0,0.9375981]
[1756583545512,0.39421392,108860.0,108850.0,1.5026581]
[1756583547214,0.44382322,108860.0,108850.0,1.5026581]
[1756583547913,0.39421392,108860.0,108850.0,1.5026581]
[1756583549311,0.08395582,108860.0,108850.0,1.5026581]
[1756583551415,0.39421392,108860.0,108850.0,1.5026581]
[1756583552215,0.35692392,108860.0,108850.0,1.5026581]
[1756583553206,0.39406392,108860.0,108850.0,1.5026581]
[1756583560523,0.08380582,108860.0,108850.0,1.5026581]
[1756583560716,0.39406392,108860.0,108850.0,1.5026581]
[1756583561919,0.08380582,108860.0,108850.0,1.5026581]
[1756583562221,0.08380582,108860.0,108850.0,1.8526581]
[1756583563222,0.04666582,108860.0,108850.0,1.8526581]
[1756583566826,0.04666582,108860.0,108850.0,1.4918581]
[1756583567030,0.04666582,108860.0,108850.0,1.8526581]
[1756583573231,0.04664965,108860.0,108850.0,1.8526581]
[1756583575440,0.02225965,108860.0,108850.0,1.8526581]
[1756583578034,0.02226022,108860.0,108850.0,1.8526581]
[1756583580042,0.07186952,108860.0,108850.0,1.8526581]
[1756583580342,0.0496093,108860.0,108850.0,1.8526581]
[1756583580835,0.0496093,108860.0,108850.0,2.1629162]
[1756583581141,0.0496093,108860.0,108850.0,2.4294162]
[1756583585241,0.02226022,108860.0,108850.0,3.1320759]
[1756583585641,0.02224936,108860.0,108850.0,3.1320759]
[1756583586242,0.02224936,108860.0,108850.0,3.442334]
[1756583586444,0.02224936,108860.0,108850.0,3.175834]
[1756583586744,0.02224936,108860.0,108850.0,3.180834]
[1756583587042,0.02224936,108860.0,108850.0,3.29873584]
[1756583587543,0.1115293,108890.0,108860.0,0.0918448]
[1756583587743,0.24375219,108890.0,108880.0,0.9813162]
[1756583587938,0.24375219,108890.0,108880.0,1.32074962]
[1756583588942,0.24475219,108890.0,108880.0,1.32074962]
[1756583590043,0.19514289,108890.0,108880.0,1.32074962]
[1756583590343,0.19514289,108890.0,108880.0,0.99074962]
[1756583590544,0.19614289,108890.0,108880.0,1.12074962]
[1756583591242,0.19614289,108890.0,108880.0,1.95218962]
[1756583591639,0.15910289,108890.0,108880.0,1.95218962]
[1756583592043,0.15910289,108890.0,108880.0,1.12074962]
[1756583592244,0.19614289,108890.0,108880.0,2.18214962]
[1756583593140,0.19614289,108890.0,108880.0,1.35074962]
[1756583593449,0.19614289,108890.0,108880.0,2.18214962]
[1756583593841,0.19614289,108890.0,108880.0,0.7810581]
[1756583594045,0.50640099,108890.0,108880.0,0.4708]
[1756583594244,0.50640099,108890.0,108880.0,1.9226762]
[1756583594444,0.50640099,108890.0,108880.0,1.6124181]
[1756583594645,0.50640099,108890.0,108880.0,1.5024181]
[1756583595648,0.50640099,108890.0,108880.0,1.8126762]
[1756583595948,0.19614289,108890.0,108880.0,1.8126762]
[1756583596149,0.50640099,108890.0,108880.0,1.8126762]
[1756583598649,0.50640099,108890.0,108880.0,0.9813162]
[1756583598851,0.50640099,108890.0,108880.0,1.8128362]
[1756583600447,0.50640099,108890.0,108880.0,0.9813162]
[1756583600750,0.50640099,108890.0,108880.0,1.8127562]
[1756583602747,0.19614289,108890.0,108880.0,1.8127562]
[1756583602948,0.50640099,108890.0,108880.0,1.8127562]
[1756583603849,0.50540099,108890.0,108880.0,1.8127562]
[1756583604349,0.50440099,108890.0,108880.0,1.8127562]
[1756583604957,0.50540099,108890.0,108880.0,1.8127562]
[1756583605544,0.50640099,108890.0,108880.0,1.8127562]
[1756583606450,0.50640099,108890.0,108880.0,0.9813162]
[1756583606651,0.50640099,108890.0,108880.0,1.8126362]
[1756583615357,0.55601029,108890.0,108880.0,1.8126362]
[1756583623363,0.55601029,108890.0,108880.0,0.9813162]
[1756583623562,0.55601029,108890.0,108880.0,1.19204]
[1756583623757,0.55601029,108890.0,108880.0,1.5022981]
[1756583624362,0.55601029,108890.0,108880.0,1.8125562]
[1756583625464,0.24575219,108890.0,108880.0,1.8125562]
[1756583625664,0.55601029,108890.0,108880.0,1.8125562]
[1756583627761,0.55601029,108890.0,108880.0,1.4517562]
[1756583627968,0.55601029,108890.0,108880.0,1.8125562]
[1756583629464,0.55601029,108890.0,108880.0,0.3608]
[1756583629670,0.55601029,108890.0,108880.0,1.8125562]
[1756583630769,0.50640099,108890.0,108880.0,1.8125562]
[1756583633572,0.50640099,108890.0,108880.0,1.5022981]
[1756583634677,0.50640099,108890.0,108880.0,0.6710581]
[1756583634879,0.75640099,108890.0,108870.0,0.95803969]
[1756583635070,0.62304109,108890.0,108880.0,0.83124]
[1756583635266,0.26224109,108890.0,108880.0,0.83124]
[1756583635976,0.26124109,108890.0,108880.0,0.83124]
[1756583636176,0.57149919,108890.0,108880.0,0.83124]
[1756583636476,0.57249919,108890.0,108880.0,0.83124]
[1756583640081,0.50640099,108890.0,108880.0,0.83124]
[1756583640284,0.46936099,108890.0,108870.0,0.6710581]
[1756583640583,0.69492232,108880.0,108860.0,0.95803969]
[1756583640771,0.41901422,108870.0,108860.0,1.33803969]
[1756583641080,0.44123711,108870.0,108860.0,2.16931969]
[1756583641279,0.13097901,108870.0,108860.0,2.16931969]
[1756583641481,0.02222289,108870.0,108860.0,2.47957779]
[1756583641882,0.36691099,108880.0,108860.0,2.47957779]
[1756583642181,0.50177099,108880.0,108860.0,1.86006159]
[1756583642379,0.50177099,108880.0,108870.0,0.3102581]
[1756583643683,0.50277099,108880.0,108870.0,0.3102581]
[1756583644681,0.50377099,108880.0,108870.0,0.3102581]
[1756583646382,0.19351289,108880.0,108870.0,0.3102581]
[1756583646581,0.50377099,108880.0,108870.0,0.3102581]
[1756583647182,0.50377099,108880.0,108870.0,0.6710581]
[1756583651279,0.55334711,108880.0,108870.0,0.6710581]
[1756583654485,0.50377099,108880.0,108870.0,0.6710581]
[1756583654986,0.55334711,108880.0,108870.0,0.6710581]
[1756583665092,0.55334711,108880.0,108870.0,0.3102581]
[1756583665393,0.50377099,108880.0,108870.0,0.3102581]
[1756583668696,0.05929,108870.0,108860.0,0.69153969]
[1756583668898,0.13111085,108870.0,108860.0,2.20315779]
[1756583669390,0.44136895,108870.0,108860.0,2.20315779]
[1756583671801,0.13111085,108870.0,108860.0,2.20315779]
[1756583674102,0.08151289,108870.0,108860.0,1.37179779]
[1756583674403,0.39177099,108870.0,108860.0,2.20315779]
[1756583675302,0.39177099,108870.0,108860.0,1.37179779]
[1756583675501,0.39177099,108870.0,108860.0,2.20315779]
[1756583676701,0.39177099,108870.0,108860.0,1.89289969]
[1756583677404,0.39177099,108870.0,108860.0,2.20315779]
[1756583680301,0.39177099,108870.0,108860.0,1.58260159]
[1756583680501,0.39177099,108870.0,108860.0,0.75128159]
[1756583680702,0.39177099,108870.0,108860.0,1.89285969]
[1756583681202,0.3695481,108870.0,108860.0,1.89285969]
[1756583681399,0.39210482,108870.0,108860.0,1.89285969]
[1756583681905,0.39210482,108870.0,108860.0,1.06153969]
[1756583682104,0.44170278,108870.0,108860.0,1.89297969]
[1756583682306,0.39210482,108870.0,108860.0,1.89297969]
[1756583683006,0.39410482,108870.0,108860.0,1.89297969]
[1756583685005,0.44370278,108870.0,108860.0,1.89297969]
[1756583687409,0.45310024,108870.0,108860.0,1.89297969]
[1756583693719,0.45310024,108870.0,108860.0,1.89309969]
[1756583698920,0.44370278,108870.0,108860.0,1.89309969]
[1756583701723,0.45302946,108870.0,108860.0,1.89309969]
[1756583702113,0.45302946,108870.0,108860.0,0.37]
[1756583702319,0.06133,108860.0,108850.0,0.9375981]
[1756583702519,0.39414482,108860.0,108850.0,1.8626181]
[1756583704025,0.39414482,108860.0,108850.0,1.55236]
[1756583704222,0.39414482,108860.0,108850.0,1.8626181]
[1756583704727,0.39414482,108860.0,108850.0,1.55236]
[1756583704919,0.39414482,108860.0,108850.0,1.8626181]
[1756583705924,0.08388672,108860.0,108850.0,1.8626181]
[1756583706120,0.39414482,108860.0,108850.0,1.8626181]
[1756583708824,0.44374278,108860.0,108850.0,1.8626181]
[1756583709526,0.39414482,108860.0,108850.0,1.8626181]
[1756583710127,0.44374278,108860.0,108850.0,1.8626181]
[1756583718036,0.44374278,108860.0,108850.0,0.72084]
[1756583718237,0.75400088,108860.0,108850.0,0.83156]
[1756583718434,0.44374278,108860.0,108850.0,1.1418181]
[1756583718939,0.44374278,108860.0,108850.0,1.5026181]
[1756583720038,0.40655278,108860.0,108850.0,1.5026181]
[1756583720238,0.04669672,108860.0,108850.0,1.5026181]
[1756583720439,0.35695482,108860.0,108850.0,1.5026181]
[1756583724140,0.40655278,108860.0,108850.0,1.5026181]
[1756583726441,0.44374278,108860.0,108850.0,1.19236]
[1756583726641,0.44374278,108860.0,108850.0,0.6710981]
[1756583726840,0.44374278,108860.0,108850.0,1.5025781]
[1756583734658,0.44374278,108860.0,108850.0,0.6710981]
[1756583734856,0.44374278,108860.0,108850.0,1.5025781]
[1756583736355,0.13348468,108860.0,108850.0,1.5025781]
[1756583736552,0.44374278,108860.0,108850.0,1.5025781]
[1756583745458,0.44374278,108860.0,108850.0,0.6710981]
[1756583745663,0.44374278,108860.0,108850.0,1.5025781]
[1756583746365,0.44374278,108860.0,108850.0,1.1417781]
[1756583748868,0.39414482,108860.0,108850.0,1.1417781]
[1756583749369,0.44377127,108860.0,108850.0,1.1417781]
[1756583750271,0.44377127,108860.0,108850.0,0.3102981]
[1756583750472,0.44377127,108860.0,108850.0,1.1417781]
[1756583751269,0.39414482,108860.0,108850.0,1.1417781]
[1756583751573,0.4437716,108860.0,108850.0,1.1417781]
[1756583755868,0.4437716,108860.0,108850.0,1.5025781]
[1756583756173,0.4065816,108860.0,108850.0,1.5025781]
[1756583756378,0.4439116,108860.0,108850.0,1.5025781]
[1756583756875,0.4065816,108860.0,108850.0,1.5025781]
[1756583757775,0.4439116,108860.0,108850.0,1.5025781]
[1756583760078,0.39428482,108860.0,108850.0,1.5025781]
[1756583764183,0.39428482,108860.0,108850.0,0.6710981]
[1756583764383,0.46038302,108860.0,108850.0,1.5025781]
[1756583764683,0.39428482,108860.0,108850.0,1.5025781]
[1756583767394,0.46038302,108860.0,108850.0,1.5025781]
[1756583770192,0.44391359,108860.0,108850.0,1.5025781]
[1756583771795,0.44391359,108860.0,108850.0,0.6710981]
[1756583771994,0.44391359,108860.0,108850.0,1.5025781]
[1756583773199,0.44391359,108860.0,108850.0,0.6710981]
[1756583773497,0.44391359,108860.0,108850.0,1.5025781]
[1756583782999,0.44391359,108860.0,108850.0,1.1417781]
[1756583783303,0.44391359,108860.0,108850.0,1.5025781]
[1756583785706,0.44391359,108860.0,108850.0,0.6710981]
[1756583785907,0.44391359,108860.0,108850.0,1.5025381]
[1756583786204,0.44391359,108860.0,108850.0,1.19228]
[1756583786408,0.44391359,108860.0,108850.0,1.5025381]
[1756583793611,0.13365549,108860.0,108850.0,1.5025381]
[1756583793810,0.44391359,108860.0,108850.0,1.5225381]
[1756583798508,0.13365549,108860.0,108850.0,1.5225381]
[1756583798709,0.44391359,108860.0,108850.0,1.5225381]
[1756583798910,0.13365549,108860.0,108850.0,1.5225381]
[1756583799109,0.44391359,108860.0,108850.0,1.5225381]
[1756583799513,0.44391359,108860.0,108850.0,0.6910981]
[1756583799713,0.44391359,108860.0,108850.0,1.5224981]
[1756583800215,0.39428482,108860.0,108850.0,1.5224981]
[1756583803316,0.08402672,108860.0,108850.0,1.5224981]
[1756583803515,0.39428482,108860.0,108850.0,1.5224981]
[1756583805313,0.04669672,108860.0,108850.0,1.5224981]
[1756583805518,0.07218051,108860.0,108850.0,1.8724981]
[1756583810421,0.44042861,108860.0,108850.0,1.19224]
[1756583810609,0.44042861,108860.0,108850.0,1.5024981]
[1756583811114,0.44042861,108860.0,108850.0,1.8224981]
[1756583811521,0.44042861,108860.0,108850.0,1.5024981]
[1756583811724,0.44042861,108860.0,108850.0,1.8324981]
[1756583812020,0.44042861,108860.0,108850.0,1.5024981]
[1756583814419,0.81106292,108860.0,108850.0,0.36084]
[1756583814619,1.22148671,108860.0,108850.0,4e-05]
[1756583814825,1.22148671,108860.0,108850.0,0.83144]
[1756583815022,1.17186292,108860.0,108850.0,0.83144]
[1756583815322,1.22146728,108860.0,108850.0,0.83144]
[1756583819732,1.22151551,108860.0,108850.0,0.83144]
[1756583820936,1.22151551,108860.0,108850.0,1.1416981]
[1756583821231,0.86071551,108860.0,108850.0,1.1416981]
[1756583828332,0.55045741,108860.0,108850.0,1.1416981]
[1756583831140,0.86071551,108860.0,108850.0,1.1416981]
[1756583838950,0.55045741,108860.0,108850.0,1.1416981]
[1756583842345,0.50085305,108860.0,108850.0,1.1416981]
[1756583845152,0.56695125,108860.0,108850.0,1.1416981]
[1756583846251,0.87720935,108860.0,108850.0,1.1416981]
[1756583854261,0.56695125,108860.0,108850.0,1.1416981]
[1756583854663,0.56696927,108860.0,108850.0,1.1416981]
[1756583855162,0.56696927,108860.0,108850.0,1.5024981]
[1756583855364,0.56696927,108860.0,108850.0,1.1416981]
[1756583856960,0.56696927,108860.0,108850.0,1.5024981]
[1756583857160,0.56696927,108860.0,108850.0,1.1416981]
[1756583860164,0.50087107,108860.0,108850.0,1.1416981]
[1756583860360,0.19061297,108860.0,108850.0,1.1416981]
[1756583860663,0.50087107,108860.0,108850.0,1.1416981]
[1756583863268,0.19061297,108860.0,108850.0,1.5024981]
[1756583863463,0.15626297,108860.0,108850.0,1.5024981]
[1756583864666,0.20588617,108860.0,108850.0,1.5024981]
[1756583865367,0.13262297,108860.0,108850.0,2.0627562]
[1756583865567,0.18224617,108860.0,108850.0,2.4427562]
[1756583866162,0.13262297,108860.0,108850.0,2.4427562]
[1756583866972,0.13262297,108860.0,108850.0,1.6113562]
[1756583867171,0.02262297,108860.0,108850.0,2.4426762]
[1756583868472,0.02262297,108860.0,108850.0,2.4436762]
[1756583869867,0.02262297,108860.0,108850.0,2.4466762]
[1756583870266,0.02262297,108860.0,108850.0,2.4436762]
[1756583870468,0.02262297,108860.0,108850.0,2.4466762]
[1756583871674,0.02262297,108860.0,108850.0,1.8818562]
[1756583871876,0.02262297,108860.0,108850.0,2.7132162]
[1756583877181,0.02262297,108860.0,108850.0,1.8818562]
[1756583877383,0.02262297,108860.0,108850.0,2.7130962]
[1756583879186,0.02262297,108860.0,108850.0,2.8238962]
[1756583880887,0.02262297,108860.0,108850.0,1.9926562]
[1756583881088,0.02262297,108860.0,108850.0,2.8238962]
[1756583882390,0.02262297,108860.0,108850.0,1.9926562]
[1756583882688,0.02262297,108860.0,108850.0,2.8238962]
[1756583885091,0.02262297,108860.0,108850.0,1.9926562]
[1756583885292,0.02262297,108860.0,108850.0,2.9157154]
[1756583886895,0.02262297,108860.0,108850.0,3.4759735]
[1756583890495,0.02262297,108860.0,108850.0,3.1657154]
[1756583891897,0.02262297,108860.0,108850.0,3.1667154]
[1756583893199,0.02262297,108860.0,108850.0,3.4769735]
[1756583893396,0.02262297,108860.0,108850.0,3.1667154]
[1756583893795,0.02262297,108860.0,108850.0,2.3355154]
[1756583894001,0.02262297,108860.0,108850.0,3.1666754]
[1756583895003,0.02262297,108860.0,108850.0,4.9134754]
[1756583896607,0.02262297,108860.0,108850.0,5.2237335]
[1756583900100,0.02262297,108860.0,108850.0,4.3925735]
[1756583900302,0.06045,108880.0,108860.0,0.0918428]
[1756583900504,0.06045,108880.0,108870.0,2.1732362]
[1756583900699,0.06045,108880.0,108870.0,2.615079]
[1756583904408,0.06045,108880.0,108870.0,2.62416078]
[1756583907509,0.03746,108890.0,108870.0,2.62416078]
[1756583907712,0.06045,108890.0,108880.0,0.9813162]
[1756583907909,0.17045,108890.0,108880.0,1.0013162]
[1756583908717,0.17045,108890.0,108880.0,1.3313162]
[1756583909711,0.17045,108890.0,108880.0,0.9813162]
[1756583909913,0.17145,108890.0,108880.0,1.3013162]
[1756583910411,0.2220732,108890.0,108880.0,1.3013162]
[1756583912317,0.24478419,108890.0,108880.0,1.3013162]
[1756583913316,0.24478419,108890.0,108880.0,1.5678162]
[1756583926923,0.20732419,108890.0,108880.0,1.5678162]
[1756583929925,0.24164419,108890.0,108880.0,1.5678162]
[1756583930328,0.24164419,108890.0,108880.0,2.3987762]
[1756583933034,0.24164419,108890.0,108880.0,2.0987762]
[1756583940337,0.24164419,108890.0,108880.0,2.0987362]
[1756583941840,0.24164419,108890.0,108880.0,1.2678162]
[1756583942040,0.24164419,108890.0,108880.0,2.0987362]
[1756583942741,0.24164419,108890.0,108880.0,1.47822]
[1756583943039,0.24164419,108890.0,108880.0,2.0987362]
[1756583948742,0.20732419,108890.0,108880.0,2.0987362]
[1756583948948,0.20732419,108890.0,108880.0,2.4187362]
[1756583950148,0.15770099,108890.0,108880.0,2.4187362]
[1756583950843,0.20732419,108890.0,108880.0,2.4187362]
[1756583954546,0.20732419,108890.0,108880.0,2.0987362]
[1756583957052,0.18433419,108890.0,108880.0,2.0987362]
[1756583957252,0.02471099,108890.0,108880.0,2.0987362]
[1756583957552,0.02471099,108890.0,108880.0,2.0787362]
[1756583957752,0.02471099,108890.0,108880.0,2.4287362]
[1756583959153,0.02371099,108890.0,108880.0,2.4287362]
[1756583959353,0.02271099,108890.0,108880.0,2.4287362]
[1756583960053,0.02471099,108890.0,108880.0,2.4287362]
[1756583960251,0.0516232,108890.0,108880.0,2.4287362]
[1756583960450,0.07433419,108890.0,108880.0,2.4187362]
[1756583963353,0.07433419,108890.0,108880.0,2.7795362]
[1756583965352,0.02471099,108890.0,108880.0,2.7795362]
[1756583966954,0.02471099,108890.0,108880.0,2.0579362]
[1756583967159,0.02471099,108890.0,108880.0,2.7795362]
[1756583984874,0.02471099,108890.0,108880.0,0.9881]
[1756583985080,0.02471099,108890.0,108880.0,2.7894162]
[1756583989988,0.02471099,108890.0,108880.0,1.3381]
[1756583990187,0.07433419,108890.0,108880.0,2.7894162]
[1756583992990,0.07433419,108890.0,108880.0,1.9586162]
[1756583993291,0.07433419,108890.0,108880.0,2.7894162]
[1756583993692,0.07433419,108890.0,108880.0,1.9586162]
[1756583993892,0.07433419,108890.0,108880.0,2.7894162]
[1756583998892,0.07433419,108890.0,108880.0,2.1689]
[1756583999192,0.07433419,108890.0,108880.0,2.7894162]
[1756584000292,0.02471099,108890.0,108880.0,2.7894162]
[1756584002094,0.02471099,108890.0,108880.0,3.4415107]
[1756584002290,0.02471099,108890.0,108880.0,3.1312526]
[1756584002891,0.02471099,108890.0,108880.0,2.2086162]
[1756584003091,0.02471099,108890.0,108880.0,3.0393762]
[1756584003689,0.02371099,108890.0,108880.0,2.2086162]
[1756584003992,0.02371099,108890.0,108880.0,3.0393762]
[1756584004797,0.02271099,108890.0,108880.0,2.41886]
[1756584004994,0.02288441,108890.0,108880.0,3.0393762]
[1756584005194,0.02288441,108890.0,108880.0,2.7728762]
[1756584007401,0.02288441,108890.0,108880.0,3.0831343]
[1756584007894,0.02288441,108890.0,108880.0,2.7728762]
[1756584008099,0.02288441,108890.0,108880.0,3.0831343]
[1756584010702,0.02288441,108890.0,108880.0,3.1749688]
[1756584011100,0.02288441,108890.0,108880.0,3.4414688]
[1756584012405,0.02287306,108890.0,108880.0,3.4414688]
[1756584013807,0.02287306,108890.0,108880.0,2.5188743]
[1756584014013,0.02287306,108890.0,108880.0,3.3495943]
[1756584014204,0.02287306,108890.0,108880.0,2.41882]
[1756584014403,0.02287306,108890.0,108880.0,3.3495943]
[1756584015303,0.02287306,108890.0,108880.0,2.2086162]
[1756584015511,0.02287306,108890.0,108880.0,3.0393362]
[1756584021313,0.02287306,108890.0,108880.0,3.1311706]
[1756584021813,0.02287306,108890.0,108880.0,3.15179057]
[1756584023013,0.02287306,108890.0,108880.0,3.05995617]
[1756584025014,0.02287306,108890.0,108880.0,3.37021427]
[1756584030017,0.02287306,108890.0,108880.0,3.37017427]
[1756584031216,0.02287306,108890.0,108880.0,3.05991617]
[1756584032318,0.02287306,108890.0,108880.0,3.37017427]
[1756584033916,0.02287306,108890.0,108880.0,1.60871997]
[1756584034113,0.02287306,108890.0,108880.0,3.05991617]
[1756584038021,0.02287306,108890.0,108880.0,2.22923617]
[1756584038221,0.05984306,108890.0,108880.0,3.05991617]
[1756584042223,0.05983186,108890.0,108880.0,3.05991617]
[1756584045629,0.02286186,108890.0,108880.0,3.05991617]
[1756584050338,0.02286186,108890.0,108880.0,2.43939997]
[1756584050633,0.02286186,108890.0,108880.0,3.05991617]
[1756584053442,0.02286186,108890.0,108880.0,5.05991617]
[1756584057648,0.02286186,108890.0,108880.0,4.33831617]
[1756584057847,0.02286186,108890.0,108880.0,5.05991617]
[1756584058049,0.05983186,108890.0,108880.0,5.05983617]
[1756584059145,0.05983186,108890.0,108880.0,4.80983617]
[1756584060247,0.02286186,108890.0,108880.0,3.97923617]
[1756584060451,0.05983186,108890.0,108880.0,4.80983617]
[1756584061846,0.02286186,108890.0,108880.0,4.80983617]
[1756584069861,0.02286186,108890.0,108880.0,3.97923617]
[1756584070057,0.05709186,108890.0,108880.0,3.83927997]
[1756584070258,0.36734996,108890.0,108880.0,3.47847997]
[1756584070458,0.36734996,108890.0,108880.0,3.00193617]
[1756584070658,0.61734996,108890.0,108880.0,3.21197997]
[1756584070859,0.61734996,108890.0,108880.0,3.52223807]
[1756584071168,0.61734996,108890.0,108880.0,3.16143807]
[1756584071364,0.61834996,108890.0,108880.0,3.16143807]
[1756584072562,0.62872628,108890.0,108880.0,3.16143807]
[1756584073163,0.62872628,108890.0,108880.0,2.33087807]
[1756584073360,0.62872628,108890.0,108880.0,2.8306]
[1756584073558,0.62872628,108890.0,108880.0,3.1408581]
[1756584076456,0.62872628,108890.0,108880.0,2.0]
[1756584076656,0.62872628,108890.0,108880.0,3.1408581]
[1756584078969,0.62872628,108890.0,108880.0,2.8306]
[1756584079170,0.62872628,108890.0,108880.0,3.1408581]
[1756584082268,0.62872628,108890.0,108880.0,1.1408581]
[1756584083269,0.31846818,108890.0,108880.0,1.1408581]
[1756584083467,0.61934996,108890.0,108880.0,1.1408581]
[1756584084172,0.66897316,108890.0,108880.0,1.1408581]
[1756584085577,0.67808772,108890.0,108880.0,1.1408581]
[1756584086269,0.65164452,108890.0,108880.0,1.1408581]
[1756584088083,0.65164452,108890.0,108880.0,0.8306]
[1756584088374,0.65164452,108890.0,108880.0,1.1408581]
[1756584088976,0.65164452,108890.0,108880.0,0.3102581]
[1756584089179,0.65164452,108890.0,108880.0,1.1410181]
[1756584090070,0.65164452,108890.0,108880.0,0.3102581]
[1756584090275,0.65164452,108890.0,108880.0,1.1411781]
[1756584091372,0.65164452,108890.0,108880.0,0.3102581]
[1756584091676,0.65164452,108890.0,108880.0,1.1411781]
[1756584093371,0.65164452,108890.0,108880.0,0.3102581]
[1756584093675,0.65164452,108890.0,108880.0,1.1412581]
[1756584093875,0.03622,108880.0,108870.0,0.38123949]
[1756584094065,0.39392996,108880.0,108870.0,0.3608]
[1756584094375,0.39392996,108880.0,108870.0,1.5021781]
[1756584096279,0.50392996,108880.0,108870.0,1.5021781]
[1756584096878,0.50492996,108880.0,108870.0,1.5021781]
[1756584097778,0.50592996,108880.0,108870.0,1.5021781]
[1756584102586,0.19567186,108880.0,108870.0,1.5021781]
[1756584102786,0.50592996,108880.0,108870.0,1.5021781]
[1756584105384,0.39592996,108880.0,108870.0,1.5021781]
[1756584105691,0.50592996,108880.0,108870.0,1.5021781]
[1756584106883,0.50592996,108880.0,108870.0,1.19192]